fUST/lending_fUST_20250212
["ID","MTS","AMOUNT","RATE_DAILY","PERIOD"]
[352803662,1739331036060,-500.0,0.0001353,2]
[352803663,1739331036070,-502.0182424,0.0001353,2]
[352803664,1739331036080,-500.0,0.0001353,2]
[352803665,1739331036090,-502.06614256,0.0001353,2]
[352803666,1739331036100,-500.0,0.0001353,2]
[352803667,1739331036109,-501.3477373,0.0001353,2]
[352803668,1739331036119,-500.0,0.0001353,2]
[352803669,1739331036129,-500.0,0.0001353,2]
[352803670,1739331036139,-500.0,0.0001353,2]
[352803671,1739331036148,-500.0,0.0001353,2]
[352803672,1739331036158,-501.35474419,0.0001353,2]
[352803673,1739331036168,-500.0,0.0001353,2]
[352803674,1739331036177,-500.0,0.0001353,2]
[352803675,1739331036187,-569.93140327,0.0001353,2]
[352803676,1739331036197,-500.0,0.0001353,2]
[352803677,1739331036206,-500.0,0.0001353,2]
[352803678,1739331036216,-503.83017747,0.0001353,2]
[352803679,1739331036226,-501.1372867,0.0001353,2]
[352803680,1739331036235,-500.0,0.0001353,2]
[352803681,1739331036246,-502.37653279,0.0001353,2]
[352803682,1739331036256,-500.0,0.0001353,2]
[352803683,1739331036265,-500.0,0.0001353,2]
[352803684,1739331036276,-539.54638667,0.0001353,2]
[352803685,1739331036285,-500.0,0.0001353,2]
[352803686,1739331036295,-502.75776476,0.0001353,2]
[352803687,1739331036304,-500.0,0.0001353,2]
[352803688,1739331036314,-503.7686047,0.0001353,2]
[352803689,1739331036324,-500.0,0.0001353,2]
[352803690,1739331036334,-500.0,0.0001353,2]
[352803691,1739331036343,-488.34941994,0.0001353,2]
[352803692,1739331036353,-500.0,0.0001353,2]
[352803693,1739331036362,-500.0,0.0001353,2]
[352803694,1739331036371,-503.97831776,0.0001353,2]
[352803695,1739331036381,-500.0,0.0001353,2]
[352803696,1739331036390,-505.9598977,0.0001353,2]
[352803697,1739331036400,-500.0,0.0001353,2]
[352803698,1739331036409,-500.0,0.0001353,2]
[352803699,1739331036418,-500.0,0.0001353,2]
[352803700,1739331036428,-501.28044837,0.0001353,2]
[352803701,1739331036438,-501.23997311,0.0001353,2]
[352803702,1739331036449,-500.0,0.0001353,2]
[352803703,1739331036460,-500.0,0.0001353,2]
[352803704,1739331036469,-500.0,0.0001353,2]
[352803705,1739331036479,-542.43,0.0001353,2]
[352803706,1739331036491,-500.0,0.0001353,2]
[352803707,1739331036501,-504.32609583,0.0001353,2]
[352803708,1739331036510,-502.79603949,0.0001353,2]
[352803709,1739331036520,-500.0,0.0001353,2]
[352803710,1739331036531,-504.33317502,0.0001353,2]
[352803711,1739331036541,-500.0,0.0001353,2]
[352803712,1739331036551,-506.79070446,0.0001353,2]
[352803713,1739331036560,-500.0,0.0001353,2]
[352803714,1739331036569,-500.0,0.0001353,2]
[352803715,1739331036579,-506.64571154,0.0001353,2]
[352803716,1739331036588,-455.89978874,0.0001353,2]
[352803717,1739331036598,-506.70275365,0.0001353,2]
[352803718,1739331036607,-247.06870911,0.0001353,2]
[352803719,1739331036617,-500.0,0.0001353,2]
[352803720,1739331036627,-506.08703028,0.0001353,2]
[352803721,1739331036638,-503.53245811,0.0001353,2]
[352803722,1739331036647,-500.0,0.0001353,2]
[352803723,1739331036657,-504.04029848,0.0001353,2]
[352803724,1739331036676,-505.90644954,0.0001353,2]
[352803725,1739331036690,-500.0,0.0001353,2]
[352803726,1739331036701,-500.0,0.0001353,2]
[352803727,1739331036711,-500.0,0.0001353,2]
[352803728,1739331036721,-506.65190305,0.0001353,2]
[352803729,1739331036731,-502.14009116,0.0001353,2]
[352803730,1739331036743,-500.0,0.0001353,2]
[352803731,1739331036753,-500.0,0.0001353,2]
[352803732,1739331036763,-238.76790229,0.0001353,2]
[352803733,1739331036772,-502.97780848,0.0001353,2]
[352803734,1739331036782,-500.0,0.0001353,2]
[352803735,1739331036792,-503.35012541,0.0001353,2]
[352803736,1739331036802,-500.0,0.0001353,2]
[352803737,1739331036812,-506.67497748,0.0001353,2]
[352803738,1739331036822,-500.0,0.0001353,2]
[352803739,1739331036832,-648.7,0.0001353,2]
[352803740,1739331036846,-648.7,0.0001353,2]
[352803741,1739331036855,-648.7,0.0001353,2]
[352803742,1739331036866,-648.7,0.0001353,2]
[352803743,1739331036876,-500.0,0.0001353,2]
[352803744,1739331036886,-501.75137019,0.0001353,2]
[352803745,1739331036896,-500.0,0.0001353,2]
[352803746,1739331036907,-500.57541692,0.0001353,2]
[352803747,1739331036918,-414.13899221,0.0001353,2]
[352803748,1739331036928,-500.0,0.0001353,2]
[352803749,1739331036938,-500.95973111,0.0001353,2]
[352803750,1739331036948,-500.0,0.0001353,2]
[352803751,1739331036959,-503.29757006,0.0001353,2]
[352803752,1739331036969,-500.0,0.0001353,2]
[352803753,1739331036979,-500.0,0.0001353,2]
[352803754,1739331036991,-500.57471155,0.0001353,2]
[352803755,1739331037001,-500.0,0.0001353,2]
[352803756,1739331037011,-500.0,0.0001353,2]
[352803757,1739331037021,-504.62675073,0.0001353,2]
[352803758,1739331037031,-500.0,0.0001353,2]
[352803759,1739331037041,-502.13099677,0.0001353,2]
[352803760,1739331037051,-500.0,0.0001353,2]
[352803761,1739331037062,-500.0,0.0001353,2]
[352803762,1739331037072,-558.60240893,0.0001353,2]
[352803763,1739331037082,-500.65274127,0.0001353,2]
[352803764,1739331037091,-500.0,0.0001353,2]
[352803765,1739331037101,-500.0,0.0001353,2]
[352803766,1739331037111,-500.0,0.0001353,2]
[352803767,1739331037121,-500.0,0.0001353,2]
[352803768,1739331037131,-500.0,0.0001353,2]
[352803769,1739331037141,-500.65650348,0.0001353,2]
[352803770,1739331037151,-500.0,0.0001353,2]
[352803771,1739331037161,-504.65493273,0.0001353,2]
[352803772,1739331037171,-626.76,0.0001353,2]
[352803773,1739331037181,-626.76,0.0001353,2]
[352803774,1739331037191,-626.76,0.0001353,2]
[352803775,1739331037202,-626.76,0.0001353,2]
[352803776,1739331037212,-500.0,0.0001353,2]
[352803777,1739331037222,-500.0,0.0001353,2]
[352803778,1739331037232,-500.0,0.0001353,2]
[352803779,1739331037243,-500.0,0.0001353,2]
[352803780,1739331037253,-500.0,0.0001353,2]
[352803781,1739331037263,-501.15441185,0.0001353,2]
[352803782,1739331037272,-500.0,0.0001353,2]
[352803783,1739331037282,-500.0,0.0001353,2]
[352803784,1739331037292,-500.0,0.0001353,2]
[352803785,1739331037302,-500.0,0.0001353,2]
[352803786,1739331037312,-500.61697836,0.0001353,2]
[352803787,1739331037322,-500.8637174,0.0001353,2]
[352803788,1739331037331,-500.0,0.0001353,2]
[352803789,1739331037341,-500.53412717,0.0001353,2]
[352803790,1739331037351,-157.26551366,0.0001353,2]
[352803791,1739331037361,-500.0,0.0001353,2]
[352803792,1739331037371,-500.0,0.0001353,2]
[352803793,1739331037381,-500.0,0.0001353,2]
[352803794,1739331037391,-500.0,0.0001353,2]
[352803795,1739331037402,-500.0,0.0001353,2]
[352803796,1739331037412,-500.8290266,0.0001353,2]
[352803797,1739331037422,-501.02329479,0.0001353,2]
[352803798,1739331037432,-500.0,0.0001353,2]
[352803799,1739331037444,-501.46556574,0.0001353,2]
[352803800,1739331037458,-500.0,0.0001353,2]
[352803801,1739331037469,-503.89828001,0.0001353,2]
[352803802,1739331037481,-500.0,0.0001353,2]
[352803803,1739331037495,-500.0,0.0001353,2]
[352803804,1739331037507,-500.0,0.0001353,2]
[352803805,1739331037522,-500.0,0.0001353,2]
[352803806,1739331037535,-501.39950636,0.0001353,2]
[352803807,1739331037545,-500.0,0.0001353,2]
[352803808,1739331037555,-500.0,0.0001353,2]
[352803809,1739331037565,-151.0,0.0001353,2]
[352803811,1739331037576,-500.0,0.0001353,2]
[352803812,1739331037587,-500.0,0.0001353,2]
[352803813,1739331037597,-500.0,0.0001353,2]
[352803814,1739331037607,-500.0,0.0001353,2]
[352803815,1739331037617,-500.0,0.0001353,2]
[352803816,1739331037626,-500.0,0.0001353,2]
[352803818,1739331037636,-500.0,0.0001353,2]
[352803820,1739331037765,-500.0,0.0001353,2]
[352803821,1739331037776,-500.0,0.0001353,2]
[352803822,1739331037786,-230.5427666,0.0001353,2]
[352803823,1739331037797,-502.12769052,0.0001353,2]
[352803825,1739331037806,-503.22129011,0.0001353,2]
[352803826,1739331037815,-500.0,0.0001353,2]
[352803827,1739331037825,-500.0,0.0001353,2]
[352803828,1739331037834,-501.76983925,0.0001353,2]
[352803829,1739331037845,-500.0,0.0001353,2]
[352803830,1739331037855,-500.0,0.0001353,2]
[352803832,1739331037864,-500.0,0.0001353,2]
[352803834,1739331037874,-500.0,0.0001353,2]
[352803835,1739331037884,-501.76842259,0.0001353,2]
[352803837,1739331037893,-500.0,0.0001353,2]
[352803839,1739331037903,-500.0,0.0001353,2]
[352803840,1739331037913,-503.93964889,0.0001353,2]
[352803842,1739331037923,-372.93951292,0.0001353,2]
[352803844,1739331037933,-500.0,0.0001353,2]
[352803845,1739331037943,-500.0,0.0001353,2]
[352803846,1739331037953,-500.0,0.0001353,2]
[352803847,1739331037962,-509.57764156,0.0001353,2]
[352803848,1739331037972,-503.85381603,0.0001353,2]
[352803850,1739331037982,-502.29631816,0.0001353,2]
[352803851,1739331037994,-501.45423363,0.0001353,2]
[352803852,1739331038004,-501.80990277,0.0001353,2]
[352803853,1739331038013,-500.0,0.0001353,2]
[352803854,1739331038023,-503.33315274,0.0001353,2]
[352803855,1739331038034,-503.70163895,0.0001353,2]
[352803857,1739331038044,-502.97874642,0.0001353,2]
[352803858,1739331038054,-503.34223926,0.0001353,2]
[352803859,1739331038064,-501.32072171,0.0001353,2]
[352803860,1739331038074,-442.15793518,0.0001353,2]
[352803861,1739331038083,-500.0,0.0001353,2]
[352803862,1739331038092,-502.05052081,0.0001353,2]
[352803863,1739331038102,-501.26941097,0.0001353,2]
[352803864,1739331038111,-502.67686025,0.0001353,2]
[352803865,1739331038124,-503.44144094,0.0001353,2]
[352803866,1739331038134,-501.78509147,0.0001353,2]
[352803867,1739331038144,-500.0,0.0001353,2]
[352803868,1739331038153,-500.0,0.0001353,2]
[352803869,1739331038163,-501.71759762,0.0001353,2]
[352803870,1739331038173,-504.57071062,0.0001353,2]
[352803871,1739331038182,-500.0,0.0001353,2]
[352803872,1739331038192,-501.46075705,0.0001353,2]
[352803873,1739331038201,-151.0,0.0001353,2]
[352803874,1739331038211,-151.0,0.0001353,2]
[352803875,1739331038221,-501.28990789,0.0001353,2]
[352803876,1739331038231,-505.35134248,0.0001353,2]
[352803877,1739331038243,-505.38059545,0.0001353,2]
[352803878,1739331038252,-324.56937571,0.0001353,2]
[352803879,1739331038262,-500.0,0.0001353,2]
[352803880,1739331038271,-502.05849719,0.0001353,2]
[352803881,1739331038280,-500.0,0.0001353,2]
[352803882,1739331038290,-500.0,0.0001353,2]
[352803883,1739331038299,-502.83772679,0.0001353,2]
[352803884,1739331038309,-501.57911726,0.0001353,2]
[352803885,1739331038319,-376.41275057,0.0001353,2]
[352803886,1739331038329,-500.0,0.0001353,2]
[352803887,1739331038337,-500.86318447,0.0001353,2]
[352803888,1739331038346,-500.0,0.0001353,2]
[352803889,1739331038356,-500.36229143,0.0001353,2]
[352803890,1739331038365,-500.0,0.0001353,2]
[352803891,1739331038375,-500.0,0.0001353,2]
[352803892,1739331038385,-500.0,0.0001353,2]
[352803893,1739331038394,-500.0,0.0001353,2]
[352803894,1739331038403,-501.31334184,0.0001353,2]
[352803895,1739331038412,-500.0,0.0001353,2]
[352803896,1739331038422,-501.2999824,0.0001353,2]
[352803897,1739331038431,-500.0,0.0001353,2]
[352803898,1739331038440,-500.41579809,0.0001353,2]
[352803899,1739331038452,-500.0,0.0001353,2]
[352803900,1739331038461,-500.0,0.0001353,2]
[352803901,1739331038470,-500.0,0.0001353,2]
[352803902,1739331038479,-502.07828123,0.0001353,2]
[352803903,1739331038490,-500.0,0.0001353,2]
[352803904,1739331038500,-501.2058823,0.0001353,2]
[352803905,1739331038509,-505.30214833,0.0001353,2]
[352803906,1739331038520,-151.0,0.0001353,2]
[352803907,1739331038531,-154.899148,0.0001353,2]
[352803908,1739331038540,-500.0,0.0001353,2]
[352803909,1739331038550,-162.9990863,0.0001353,2]
[352803910,1739331038559,-508.17913529,0.0001353,2]
[352803911,1739331038569,-502.18102688,0.0001353,2]
[352803912,1739331038578,-501.24945133,0.0001353,2]
[352803913,1739331038587,-500.0,0.0001353,2]
[352803914,1739331038597,-156.378089,0.0001353,2]
[352803915,1739331038606,-500.0,0.0001353,2]
[352803916,1739331038615,-500.0,0.0001353,2]
[352803917,1739331038625,-153.02942,0.0001353,2]
[352803918,1739331038634,-500.0,0.0001353,2]
[352803919,1739331038644,-500.0,0.0001353,2]
[352803920,1739331038653,-241.24967432,0.0001353,2]
[352803921,1739331038662,-501.89938828,0.0001353,2]
[352803922,1739331038673,-500.0,0.0001353,2]
[352803923,1739331038683,-151.0,0.0001353,2]
[352803924,1739331038694,-151.0,0.0001353,2]
[352803925,1739331038705,-151.0,0.0001353,2]
[352803926,1739331038715,-151.0,0.0001353,2]
[352803927,1739331038724,-500.0,0.0001353,2]
[352803928,1739331038737,-500.0,0.0001353,2]
[352803929,1739331038749,-605.72072481,0.0001353,2]
[352803930,1739331038760,-500.0,0.0001353,2]
[352803931,1739331038770,-8513.71,0.0001353,2]
[352803932,1739331038780,-8513.71,0.0001353,2]
[352803933,1739331038789,-8513.71,0.0001353,2]
[352803934,1739331038799,-516.05031701,0.0001353,2]
[352803935,1739331038808,-500.0,0.0001353,2]
[352803936,1739331038818,-501.44435514,0.0001353,2]
[352803937,1739331038827,-500.0,0.0001353,2]
[352803938,1739331038836,-500.0,0.0001353,2]
[352803939,1739331038846,-503.38024815,0.0001353,2]
[352803940,1739331038855,-500.0,0.0001353,2]
[352803942,1739331038865,-501.8535876,0.0001353,2]
[352803944,1739331038875,-501.58349984,0.0001353,2]
[352803946,1739331038884,-151.0,0.0001353,2]
[352803949,1739331038893,-151.0,0.0001353,2]
[352803953,1739331038903,-151.0,0.0001353,2]
[352803957,1739331038913,-151.0,0.0001353,2]
[352803960,1739331038923,-500.0,0.0001353,2]
[352803963,1739331038933,-500.0,0.0001353,2]
[352803966,1739331038943,-500.0,0.0001353,2]
[352803969,1739331038952,-500.73252717,0.0001353,2]
[352803972,1739331038962,-501.05117217,0.0001353,2]
[352803975,1739331038971,-500.0,0.0001353,2]
[352803978,1739331038981,-511.27542056,0.0001353,2]
[352803980,1739331038990,-151.0,0.0001353,2]
[352803983,1739331039006,-151.0,0.0001353,2]
[352803986,1739331039029,-151.0,0.0001353,2]
[352803987,1739331039039,-151.0,0.0001353,2]
[352803988,1739331039049,-197.0,0.0001353,2]
[352803989,1739331039059,-500.0,0.0001353,2]
[352803990,1739331039069,-500.0,0.0001353,2]
[352803991,1739331039079,-500.0,0.0001353,2]
[352803992,1739331039090,-500.0,0.0001353,2]
[352803993,1739331039100,-502.85460201,0.0001353,2]
[352803994,1739331039113,-500.0,0.0001353,2]
[352803995,1739331039124,-501.74013933,0.0001353,2]
[352803996,1739331039134,-501.21531684,0.0001353,2]
[352803997,1739331039144,-615.17001958,0.0001353,2]
[352803998,1739331039154,-500.81904318,0.0001353,2]
[352803999,1739331039164,-565.82884167,0.0001353,2]
[352804000,1739331039173,-500.44318668,0.0001353,2]
[352804001,1739331039183,-500.0,0.0001353,2]
[352804002,1739331039193,-500.0,0.00013531,2]
[352804003,1739331039203,-500.0,0.00013531,2]
[352804004,1739331039214,-500.0,0.00013531,2]
[352804005,1739331039225,-500.0,0.00013531,2]
[352804006,1739331039234,-501.15212885,0.00013531,2]
[352804007,1739331039246,-500.0,0.00013531,2]
[352804008,1739331039256,-500.0,0.00013531,2]
[352804009,1739331039266,-500.0,0.00013531,2]
[352804010,1739331039276,-500.0,0.00013531,2]
[352804011,1739331039285,-500.0,0.00013531,2]
[352804012,1739331039295,-500.0,0.00013531,2]
[352804013,1739331039305,-500.0,0.00013531,2]
[352804014,1739331039315,-500.0,0.00013531,2]
[352804015,1739331039324,-628.51,0.00013531,2]
[352804016,1739331039334,-500.0,0.00013531,2]
[352804017,1739331039343,-500.32450951,0.00013531,2]
[352804018,1739331039353,-151.0,0.00013531,2]
[352804019,1739331039363,-500.0,0.00013531,2]
[352804020,1739331039372,-500.0,0.00013531,2]
[352804021,1739331039382,-203.025446,0.00013531,2]
[352804022,1739331039391,-500.0,0.00013531,2]
[352804023,1739331039401,-500.0,0.00013531,2]
[352804024,1739331039411,-151.0,0.00013531,2]
[352804025,1739331039422,-8513.71,0.00013531,2]
[352804026,1739331039431,-8513.71,0.00013531,2]
[352804027,1739331039443,-158.578012,0.00013531,2]
[352804028,1739331039459,-151.0,0.00013531,2]
[352804029,1739331039469,-564.95371301,0.00013532,2]
[352804030,1739331039480,-500.0,0.00013532,2]
[352804031,1739331039491,-297.83337135,0.00013532,2]
[352804032,1739331039504,-500.87908749,0.00013532,2]
[352804033,1739331039513,-502.0154512,0.00013532,2]
[352804034,1739331039525,-501.29385618,0.00013532,2]
[352804035,1739331039535,-500.0,0.00013532,2]
[352804036,1739331039544,-500.0,0.00013532,2]
[352804040,1739331039666,-500.0,0.00013532,2]
[352804041,1739331039676,-500.0,0.00013532,2]
[352804042,1739331039686,-648.7,0.00013532,2]
[352804043,1739331039695,-648.7,0.00013532,2]
[352804044,1739331039705,-151.0,0.00013532,2]
[352804045,1739331039714,-513.82519333,0.00013532,2]
[352804046,1739331039724,-626.76,0.00013532,2]
[352804047,1739331039734,-626.76,0.00013532,2]
[352804048,1739331039747,-500.0,0.00013532,2]
[352804049,1739331039756,-500.0,0.00013532,2]
[352804051,1739331039766,-8513.71,0.00013532,2]
[352804052,1739331039775,-8513.71,0.00013532,2]
[352804053,1739331039785,-500.0,0.00013532,2]
[352804054,1739331039795,-500.0,0.00013532,2]
[352804055,1739331039805,-405.96685463,0.00013533,5]
[352804056,1739331039816,-500.0,0.00013533,2]
[352804057,1739331039827,-406.94207164,0.00013533,2]
[352804058,1739331039840,-500.99476283,0.00013533,2]
[352804059,1739331039850,-501.42280111,0.00013533,2]
[352804060,1739331039859,-383.02853692,0.00013533,2]
[352804061,1739331039869,-500.86622261,0.00013533,2]
[352804062,1739331039879,-498.70071267,0.00013533,2]
[352804063,1739331039888,-501.80794438,0.00013533,2]
[352804064,1739331039899,-502.87430555,0.00013533,2]
[352804065,1739331039909,-500.0,0.00013533,2]
[352804066,1739331039919,-500.0,0.00013533,2]
[352804067,1739331039929,-500.962834,0.00013533,2]
[352804068,1739331039939,-501.0426797,0.00013533,2]
[352804069,1739331039948,-500.0,0.00013533,2]
[352804070,1739331039958,-500.7298411,0.00013533,2]
[352804071,1739331039968,-561.17603659,0.00013533,2]
[352804072,1739331039977,-500.0,0.00013533,2]
[352804073,1739331039987,-503.81329501,0.00013533,2]
[352804074,1739331039998,-500.0,0.00013533,2]
[352804075,1739331040008,-504.99638995,0.00013533,2]
[352804076,1739331040018,-500.0,0.00013533,2]
[352804077,1739331040028,-492.43878975,0.00013533,2]
[352804078,1739331040038,-350.67665639,0.00013533,2]
[352804079,1739331040048,-500.0,0.00013533,2]
[352804081,1739331040058,-500.0,0.00013533,2]
[352804083,1739331040068,-500.81485506,0.00013533,2]
[352804084,1739331040078,-500.98714355,0.00013533,2]
[352804086,1739331040088,-500.46290791,0.00013533,2]
[352804088,1739331040098,-500.0,0.00013533,2]
[352804089,1739331040107,-500.0,0.00013533,2]
[352804090,1739331040117,-151.928273,0.00013533,2]
[352804091,1739331040127,-152.088468,0.00013533,2]
[352804092,1739331040136,-151.0,0.00013533,2]
[352804093,1739331040145,-151.0,0.00013533,2]
[352804094,1739331040156,-151.0,0.00013533,2]
[352804095,1739331040165,-210.48857037,0.00013565,2]
[352804096,1739331040175,-500.0,0.00013573,2]
[352804097,1739331040185,-648.7,0.00013644,2]
[352804098,1739331040196,-626.76,0.00013644,2]
[352804099,1739331040206,-507.25283716,0.00013664,2]
[352804100,1739331040216,-1973.1,0.00013665,2]
[352804101,1739331040226,-500.0,0.00013665,2]
[352804102,1739331040236,-500.0,0.00013665,2]
[352804103,1739331040247,-500.0,0.00013665,2]
[352804104,1739331040259,-736.87,0.00013665,2]
[352804105,1739331040268,-500.0,0.00013665,2]
[352804106,1739331040278,-503.69583216,0.00013665,2]
[352804107,1739331040288,-500.0,0.00013665,2]
[352804108,1739331040298,-502.6808592,0.00013665,2]
[352804109,1739331040307,-503.8999423,0.00013665,2]
[352804110,1739331040317,-500.0,0.00013665,2]
[352804111,1739331040327,-505.42475659,0.00013665,2]
[352804112,1739331040336,-502.90340593,0.00013665,2]
[352804113,1739331040346,-500.0,0.00013665,2]
[352804114,1739331040355,-500.0,0.00013665,2]
[352804115,1739331040365,-511.46,0.00013665,2]
[352804116,1739331040374,-500.0,0.00013665,2]
[352804117,1739331040384,-504.89457677,0.00013665,2]
[352804118,1739331040394,-500.0,0.00013665,2]
[352804119,1739331040403,-500.0,0.00013665,2]
[352804120,1739331040412,-503.08595632,0.00013665,2]
[352804121,1739331040422,-503.40843146,0.00013665,2]
[352804122,1739331040431,-500.0,0.00013665,2]
[352804123,1739331040440,-627.39353704,0.00013665,2]
[352804124,1739331040453,-151.0,0.00013665,2]
[352804125,1739331040463,-500.0,0.00013665,2]
[352804126,1739331040475,-502.91379177,0.00013665,2]
[352804127,1739331040491,-500.0,0.00013665,2]
[352804128,1739331040511,-8513.71,0.00013665,2]
[352804129,1739331040523,-8513.71,0.00013665,2]
[352804130,1739331040538,-8513.71,0.00013665,2]
[352804131,1739331040553,-8513.71,0.00013665,2]
[352804132,1739331040569,-8513.71,0.00013665,2]
[352804133,1739331040583,-8513.87510126,0.00013665,2]
[352804134,1739331040598,-500.0,0.00013665,2]
[352804135,1739331040613,-511.16,0.00013665,2]
[352804136,1739331040629,-500.0,0.00013665,2]
[352804137,1739331040644,-500.0,0.00013665,2]
[352804138,1739331040656,-500.0,0.00013665,2]
[352804139,1739331040672,-451.19675204,0.00013665,2]
[352804140,1739331040687,-500.0,0.00013665,2]
[352804141,1739331040702,-505.49698457,0.00013665,2]
[352804142,1739331040715,-500.0,0.00013665,2]
[352804143,1739331040727,-500.0,0.00013665,2]
[352804144,1739331040739,-502.85590933,0.00013665,2]
[352804145,1739331040753,-500.0,0.00013665,2]
[352804146,1739331040768,-500.0,0.00013665,2]
[352804147,1739331040783,-500.0,0.00013665,2]
[352804148,1739331040797,-151.0,0.00013665,2]
[352804149,1739331040814,-500.0,0.00013665,2]
[352804150,1739331040831,-500.0,0.00013665,2]
[352804151,1739331040848,-500.0,0.00013665,2]
[352804152,1739331040861,-500.0,0.00013665,2]
[352804153,1739331040872,-500.0,0.00013665,2]
[352804154,1739331040884,-274.44125279,0.00013665,2]
[352804155,1739331040898,-500.0,0.00013665,2]
[352804156,1739331040914,-701.26,0.00013665,2]
[352804157,1739331040928,-500.0,0.00013665,2]
[352804158,1739331040940,-746.56,0.00013665,2]
[352804159,1739331040953,-500.0,0.00013665,2]
[352804160,1739331040968,-500.0,0.00013666,2]
[352804161,1739331040981,-500.0,0.00013666,2]
[352804162,1739331040993,-500.0,0.00013666,2]
[352804163,1739331041008,-500.0,0.00013666,2]
[352804164,1739331041023,-502.92795177,0.00013666,2]
[352804165,1739331041036,-500.0,0.00013666,2]
[352804166,1739331041050,-500.0,0.00013666,2]
[352804167,1739331041064,-500.0,0.00013666,2]
[352804168,1739331041077,-500.0,0.00013666,2]
[352804169,1739331041090,-648.7,0.00013666,2]
[352804170,1739331041103,-648.7,0.00013666,2]
[352804171,1739331041116,-500.0,0.00013666,2]
[352804172,1739331041129,-500.0,0.00013666,2]
[352804173,1739331041144,-500.0,0.00013666,2]
[352804174,1739331041157,-500.0,0.00013666,2]
[352804175,1739331041170,-500.0,0.00013666,2]
[352804176,1739331041183,-500.0,0.00013666,2]
[352804177,1739331041196,-500.0,0.00013666,2]
[352804178,1739331041209,-500.0,0.00013666,2]
[352804179,1739331041222,-500.0,0.00013666,2]
[352804180,1739331041235,-500.0,0.00013666,2]
[352804181,1739331041249,-626.76,0.00013666,2]
[352804182,1739331041261,-626.76,0.00013666,2]
[352804183,1739331041274,-500.0,0.00013666,2]
[352804184,1739331041285,-500.0,0.00013666,2]
[352804185,1739331041298,-500.0,0.00013666,2]
[352804186,1739331041312,-500.0,0.00013666,2]
[352804187,1739331041324,-501.70973441,0.00013666,2]
[352804188,1739331041337,-500.0,0.00013666,2]
[352804189,1739331041350,-500.0,0.00013666,2]
[352804190,1739331041363,-501.09396162,0.00013666,2]
[352804191,1739331041375,-500.0,0.00013666,2]
[352804192,1739331041387,-500.0,0.00013666,2]
[352804193,1739331041400,-500.0,0.00013666,2]
[352804194,1739331041413,-504.5101064,0.00013666,2]
[352804195,1739331041425,-504.18997682,0.00013666,2]
[352804196,1739331041438,-500.0,0.00013666,2]
[352804197,1739331041453,-500.0,0.00013666,2]
[352804198,1739331041466,-500.0,0.00013666,2]
[352804199,1739331041479,-500.0,0.00013666,2]
[352804200,1739331041492,-504.67043883,0.00013666,2]
[352804201,1739331041507,-500.0,0.00013666,2]
[352804202,1739331041520,-459.51609353,0.00013666,2]
[352804203,1739331041535,-504.26442328,0.00013666,2]
[352804204,1739331041548,-500.0,0.00013666,2]
[352804205,1739331041560,-520.52950203,0.00013666,2]
[352804206,1739331041573,-503.99027307,0.00013666,2]
[352804207,1739331041587,-500.0,0.00013666,2]
[352804208,1739331041728,-500.0,0.00013666,2]
[352804209,1739331041767,-500.0,0.00013666,2]
[352804210,1739331041777,-502.66768258,0.00013666,2]
[352804211,1739331041786,-500.0,0.00013666,2]